bitfinex/quotes_SOLUSD_20220130
["timestamp","ask_amount","ask_price","bid_price","bid_amount"]
[1643553939576,1.64596592,94.557,94.441,1.46465334]
[1643553939774,1.64596592,94.557,94.436,48.4783]
[1643553939775,15.888,94.52,94.436,49.94295334]
[1643553939975,15.07,94.51,94.436,48.4783]
[1643553940376,15.07,94.51,94.437,42.84043257]
[1643553940578,2.95669142,94.509,94.437,42.84043257]
[1643553941179,0.25,94.508,94.437,42.84043257]
[1643553941376,15.888,94.5,94.436,48.4783]
[1643553941976,2.95669142,94.499,94.436,48.4783]
[1643553944780,15.889,94.49,94.436,48.4783]
[1643553944979,15.889,94.49,94.415,1.46465334]
[1643553945177,2.95669142,94.489,94.415,1.46465334]
[1643553945578,2.95669142,94.489,94.413,1.46465334]
[1643553945779,2.95669142,94.489,94.414,41.19225045]
[1643553945979,15.891,94.48,94.414,41.19225045]
[1643553946482,18.84769142,94.48,94.414,41.19225045]
[1643553947482,18.84769142,94.48,94.405,1.46465334]
[1643553947681,28.91769142,94.48,94.405,1.46465334]
[1643553947882,15.894,94.47,94.403,1.46465334]
[1643553948083,15.894,94.47,94.402,22.7739]
[1643553948282,2.95669142,94.469,94.402,22.7739]
[1643553948483,108.75669142,94.469,94.395,1.46465334]
[1643553948683,108.75669142,94.469,94.369,1.46465334]
[1643553948884,26.53889142,94.468,94.362,24.76165334]
[1643553949284,2.95669142,94.467,94.362,23.297]
[1643553949483,105.8,94.449,94.362,23.297]
[1643553949684,105.8,94.449,94.363,34.65589169]
[1643553949887,2.95669142,94.448,94.363,34.65589169]
[1643553950484,2.95669142,94.448,94.362,23.297]
[1643553951284,0.25,94.447,94.372,6.0]
[1643553951486,0.25,94.447,94.373,35.38362826]
[1643553952084,2.95669142,94.446,94.373,35.38362826]
[1643553952283,2.95669142,94.446,94.374,0.25]
[1643553952485,15.07,94.45,94.383,6.0]
[1643553952684,15.07,94.45,94.373,35.38362826]
[1643553952985,15.07,94.45,94.374,0.25]
[1643553953584,2.95669142,94.449,94.374,0.25]
[1643553953786,3.20669142,94.449,94.374,0.25]
[1643553954386,2.95669142,94.448,94.374,0.25]
[1643553954788,2.95669142,94.448,94.362,23.297]
[1643553955214,2.95669142,94.448,94.363,0.25]
[1643553955722,2.95669142,94.448,94.363,35.90603762]
[1643553956124,2.95669142,94.448,94.373,6.0]
[1643553956317,2.95669142,94.448,94.374,23.5887]
[1643553957020,2.95669142,94.448,94.384,6.0]
[1643553957220,0.25,94.447,94.384,6.0]
[1643553957423,0.25,94.447,94.374,23.5887]
[1643553957627,2.95669142,94.446,94.374,23.5887]
[1643553960920,15.898,94.44,94.374,23.5887]
[1643553961420,2.95669142,94.439,94.374,23.5887]
[1643553962222,0.25,94.438,94.374,23.5887]
[1643553962621,2.95669142,94.437,94.374,23.5887]
[1643553963824,0.25,94.438,94.374,23.5887]
[1643553964626,0.25,94.438,94.375,0.25]
[1643553965024,30.965,94.46,94.374,23.5887]
[1643553965225,0.25,94.458,94.374,23.5887]
[1643553965625,2.95669142,94.457,94.374,23.5887]
[1643553965826,15.896,94.45,94.374,23.5887]
[1643553966226,2.95669142,94.449,94.374,23.5887]
[1643553968231,15.07,94.46,94.374,23.5887]
[1643553968628,2.95669142,94.449,94.374,23.5887]
[1643553969029,15.07,94.46,94.384,6.0]
[1643553969228,2.95669142,94.459,94.385,24.2605]
[1643553970637,0.25,94.458,94.385,24.2605]
[1643553971031,2.95669142,94.457,94.385,24.2605]
[1643553972033,15.897,94.45,94.385,24.2605]
[1643553972533,2.95669142,94.449,94.385,24.2605]
[1643553973236,15.898,94.44,94.385,24.2605]
[1643553973434,15.898,94.44,94.374,1.46465334]
[1643553973634,18.85469142,94.44,94.374,1.46465334]
[1643553973932,18.85469142,94.44,94.368,1.46465334]
[1643553974233,18.85469142,94.44,94.378,6.0]
[1643553974434,0.25,94.439,94.378,6.0]
[1643553974633,0.25,94.439,94.383,6.0]
[1643553974836,2.95669142,94.438,94.378,6.0]
[1643553975034,2.95669142,94.438,94.384,6.0]
[1643553975434,2.95669142,94.438,94.374,1.46465334]
[1643553976437,2.95669142,94.438,94.379,1.46465334]
[1643553977239,2.95669142,94.438,94.378,1.46465334]
[1643553977839,2.95669142,94.438,94.379,1.46465334]
[1643553978241,2.95669142,94.438,94.378,1.46465334]
[1643553978641,2.95669142,94.438,94.382,1.46465334]
[1643553979842,2.95669142,94.438,94.375,24.0168]
[1643553979843,2.95669142,94.438,94.383,1.46465334]
[1643553980043,2.95669142,94.438,94.384,1.46465334]
[1643553980845,15.895,94.46,94.388,1.46465334]
[1643553981046,15.895,94.46,94.398,6.0]
[1643553981244,2.95669142,94.481,94.405,32.78034775]
[1643553981443,24.4066,94.479,94.406,24.8752]
[1643553981642,24.4066,94.479,94.416,6.0]
[1643553981844,24.4066,94.479,94.406,24.8752]
[1643553982243,0.25,94.467,94.406,24.8752]
[1643553983144,2.95669142,94.481,94.407,105.8]
[1643553983342,1.44596592,94.49,94.416,6.0]
[1643553983542,16.1874,94.495,94.417,6.0]
[1643553983747,1.44596592,94.501,94.418,23.6344]
[1643553983943,1.44596592,94.514,94.419,105.8]
[1643553984144,1.44596592,94.518,94.429,6.0]
[1643553984344,0.2,94.542,94.429,6.0]
[1643553984345,1.44596592,94.534,94.435,1.46465334]
[1643553984543,2.95669142,94.538,94.534,0.02460786]
[1643553984743,2.95669142,94.538,94.454,1.46465334]
[1643553985148,0.25,94.537,94.465,45.67452186]
[1643553985343,0.25,94.537,94.466,0.25]
[1643553985543,0.25,94.537,94.475,6.0]
[1643553985943,2.95669142,94.536,94.475,6.0]
[1643553986543,2.95669142,94.536,94.465,45.67452186]
[1643553987345,2.95669142,94.536,94.475,6.0]
[1643553988546,2.95669142,94.536,94.465,45.67452186]
[1643553988748,2.95669142,94.536,94.475,6.0]
[1643553989346,0.25,94.535,94.475,6.0]
[1643553989746,2.95669142,94.534,94.475,6.0]
[1643553990147,15.883,94.53,94.475,6.0]
[1643553990347,15.883,94.53,94.465,45.67452186]
[1643553990548,2.95669142,94.529,94.465,45.67452186]
[1643553993755,0.25,94.528,94.465,45.67452186]
[1643553994058,2.95669142,94.527,94.465,45.67452186]
[1643553995457,15.884,94.52,94.465,45.67452186]
[1643553995858,2.95669142,94.519,94.465,45.67452186]
[1643553997276,2.95669142,94.519,94.465,45.64731652]
[1643553997477,2.95669142,94.519,94.475,6.0]
[1643553997877,2.95669142,94.519,94.465,45.64731652]
[1643553999683,2.95669142,94.519,94.475,6.0]
[1643554000590,2.95669142,94.519,94.465,45.64731652]
[1643554000786,0.25,94.518,94.465,45.64731652]
[1643554001487,2.95669142,94.517,94.465,45.64731652]
[1643554003887,2.95669142,94.517,94.446,45.9634]
[1643554004089,15.07,94.51,94.381,70.8375]
[1643554004288,15.07,94.51,94.387,1.46938569]
[1643554004491,15.07,94.51,94.381,70.8375]
[1643554004492,133.63939142,94.509,94.381,70.8375]
[1643554004688,150.59858228,94.509,94.381,70.8375]
[1643554004988,15.889,94.49,94.382,33.32590043]
[1643554005188,15.889,94.49,94.391,6.0]
[1643554005390,108.75669142,94.489,94.382,33.32590043]
[1643554005788,2.95669142,94.488,94.383,0.25]
[1643554005989,15.895,94.46,94.382,33.32590043]
[1643554006188,15.895,94.46,94.381,70.8375]
[1643554006391,2.95669142,94.459,94.381,70.8375]
[1643554007189,2.95669142,94.459,94.391,6.0]
[1643554007390,2.95669142,94.459,94.392,0.25]
[1643554007620,2.95669142,94.459,94.392,6.25]
[1643554007790,2.95669142,94.459,94.382,42.46070078]
[1643554008092,2.95669142,94.459,94.392,6.0]
[1643554008290,0.25,94.458,94.382,42.46070078]
[1643554008691,2.95669142,94.457,94.382,42.46070078]
[1643554009092,15.896,94.45,94.382,42.46070078]
[1643554009594,2.95669142,94.449,94.382,42.46070078]
[1643554010194,2.95669142,94.449,94.383,0.25]
[1643554010593,2.95669142,94.449,94.392,6.0]
[1643554011195,2.95669142,94.449,94.382,42.46070078]
[1643554011404,2.95669142,94.449,94.383,0.25]
[1643554011595,0.25,94.458,94.392,6.0]
[1643554011796,0.25,94.458,94.393,23.5315]
[1643554011996,0.25,94.458,94.403,6.0]
[1643554012201,0.25,94.458,94.404,38.92974914]
[1643554012798,15.07,94.47,94.404,38.92974914]
[1643554012996,30.963,94.47,94.404,38.92974914]
[1643554013406,0.25,94.469,94.404,38.92974914]
[1643554013798,3.20669142,94.469,94.404,38.92974914]
[1643554013999,2.95669142,94.468,94.381,23.6114]
[1643554014198,105.8,94.459,94.381,23.6114]
[1643554014600,2.95669142,94.458,94.381,23.6114]
[1643554014804,15.07,94.45,94.381,23.6114]
[1643554015200,15.898,94.44,94.381,23.6114]
[1643554015601,2.95669142,94.439,94.381,23.6114]
[1643554016002,15.898,94.44,94.381,23.6114]
[1643554017802,2.95669142,94.452,94.382,0.25]
[1643554018004,2.95669142,94.452,94.382,23.9419]
[1643554018203,2.95669142,94.452,94.382,23.6919]
[1643554019103,15.897,94.45,94.382,23.6919]
[1643554019304,15.897,94.45,94.383,0.25]
[1643554019603,15.897,94.45,94.382,23.6919]
[1643554019805,0.25,94.449,94.383,0.25]
[1643554021008,2.95669142,94.464,94.392,6.0]
[1643554021208,52.969,94.5,94.393,62.09228338]
[1643554021409,68.039,94.5,94.393,62.34228338]
[1643554021609,68.039,94.5,94.403,6.0]
[1643554021808,15.07,94.5,94.404,24.3673]
[1643554022008,15.89,94.49,94.404,24.3673]
[1643554022416,0.25,94.489,94.404,24.3673]
[1643554022829,0.25,94.489,94.415,35.09253949]
[1643554023028,0.25,94.489,94.416,24.83]
[1643554023229,0.25,94.489,94.416,25.08]
[1643554023430,0.25,94.489,94.426,6.0]
[1643554023629,2.95669142,94.499,94.426,6.0]
[1643554023630,2.95669142,94.499,94.427,24.83]
[1643554023830,2.95669142,94.499,94.427,25.08]
[1643554024030,2.95669142,94.499,94.438,36.45698547]
[1643554025331,2.95669142,94.499,94.439,0.25]
[1643554026431,108.75669142,94.499,94.438,36.45698547]
[1643554026932,2.95669142,94.498,94.438,36.45698547]
[1643554027333,0.25,94.497,94.438,36.45698547]
[1643554027833,2.95669142,94.496,94.438,36.45698547]
[1643554029035,0.25,94.497,94.438,36.45698547]
[1643554029234,2.95669142,94.496,94.438,36.45698547]
[1643554030838,0.25,94.495,94.438,36.45698547]
[1643554031839,2.95669142,94.496,94.438,36.45698547]
[1643554033139,0.25,94.495,94.438,36.45698547]
[1643554033541,2.95669142,94.494,94.438,36.45698547]
[1643554033942,2.95669142,94.494,94.427,24.83]
[1643554034941,2.95669142,94.494,94.428,38.63141598]
[1643554037343,0.25,94.493,94.428,38.63141598]
[1643554037744,2.95669142,94.492,94.428,38.63141598]
[1643554038144,0.25,94.491,94.428,38.63141598]
[1643554038544,2.95669142,94.49,94.428,38.63141598]
[1643554038745,18.84569142,94.49,94.428,38.63141598]
[1643554039147,2.95669142,94.489,94.428,38.63141598]
[1643554040348,2.95669142,94.489,94.438,6.0]
[1643554040551,2.95669142,94.489,94.439,6.0]
[1643554040947,2.95669142,94.489,94.429,24.3583]
[1643554042348,15.889,94.49,94.43,0.25]
[1643554042548,2.95669142,94.489,94.43,0.25]
[1643554044859,2.95669142,94.489,94.429,0.25]
[1643554045251,0.25,94.488,94.428,38.63141598]
[1643554045452,15.891,94.48,94.396,1.46938569]
[1643554045660,30.961,94.48,94.392,24.7316]
[1643554045852,30.961,94.48,94.392,24.9816]
[1643554046052,2.95669142,94.479,94.392,24.7316]
[1643554046254,108.75669142,94.479,94.382,1.46938569]
[1643554046455,108.75669142,94.479,94.373,1.46938569]
[1643554046456,0.31045347,94.466,94.373,1.46938569]
[1643554046654,30.965,94.46,94.359,1.46938569]
[1643554046952,1.44634992,94.456,94.348,48.3325]
[1643554047158,1.44634992,94.455,94.348,48.3325]
[1643554047451,15.07,94.44,94.348,48.3325]
[1643554047653,129.9768,94.439,94.348,48.3325]
[1643554047852,146.93599086,94.439,94.349,39.15250611]
[1643554048152,15.903,94.43,94.349,39.15250611]
[1643554048355,15.07,94.42,94.349,39.15250611]
[1643554048552,15.07,94.42,94.35,24.2241]
[1643554048951,108.75669142,94.419,94.35,24.2241]
[1643554049354,2.95669142,94.418,94.328,1.46938569]
[1643554049552,15.903,94.41,94.338,6.0]
[1643554049752,15.903,94.41,94.328,6.0]
[1643554049953,15.07,94.4,94.334,6.0]
[1643554050154,105.8,94.399,94.334,6.0]
[1643554050353,105.8,94.399,94.335,39.41378222]
[1643554050556,108.75669142,94.399,94.335,39.41378222]
[1643554051155,15.906,94.39,94.335,39.41378222]
[1643554051356,15.906,94.39,94.329,6.0]
[1643554051756,15.906,94.39,94.271,24.7858]
[1643554051757,18.86269142,94.39,94.31,1.46938569]
[1643554051959,33.93269142,94.39,94.302,1.46938569]
[1643554052156,33.93269142,94.39,94.299,1.46938569]
[1643554052357,33.93269142,94.39,94.309,37.97785789]
[1643554052663,0.25,94.389,94.309,62.61885789]
[1643554053259,15.908,94.38,94.309,62.61885789]
[1643554053761,18.86469142,94.38,94.309,62.61885789]
[1643554055760,18.86469142,94.38,94.309,37.97785789]
[1643554056162,0.25,94.379,94.309,37.97785789]
[1643554056380,15.91,94.37,94.309,37.97785789]
[1643554056582,105.8,94.369,94.309,37.97785789]
[1643554056886,2.95669142,94.369,94.309,37.97785789]
[1643554057083,2.95669142,94.368,94.309,37.97785789]
[1643554057683,15.913,94.36,94.309,37.97785789]
[1643554058083,3.20669142,94.379,94.319,6.0]
[1643554058285,16.0304,94.389,94.32,0.25]
[1643554058684,16.0304,94.389,94.32,6.25]
[1643554058885,16.0304,94.389,94.321,6.0]
[1643554059083,16.0304,94.389,94.33,6.0]
[1643554059284,16.0304,94.389,94.331,41.71214985]
[1643554059683,0.25,94.388,94.341,6.0]
[1643554059884,15.901,94.42,94.342,0.25]
[1643554060088,2.95669142,94.427,94.342,0.25]
[1643554060386,52.986,94.47,94.343,2.26281527]
[1643554060586,84.1863,94.47,94.353,6.0]
[1643554060886,2.95669142,94.469,94.354,38.72452392]
[1643554061087,2.95669142,94.469,94.364,6.0]
[1643554061285,2.95669142,94.469,94.365,22.8047]
[1643554061484,2.95669142,94.469,94.365,28.8047]
[1643554061685,0.25,94.468,94.365,28.8047]
[1643554062084,15.895,94.46,94.365,28.8047]
[1643554062485,2.95669142,94.459,94.365,28.8047]
[1643554064290,2.95669142,94.459,94.366,105.8]
[1643554064491,34.15699142,94.47,94.366,105.8]
[1643554064691,34.15699142,94.47,94.376,6.0]
[1643554064900,18.02669142,94.47,94.377,42.94597158]
[1643554065092,105.8,94.469,94.387,6.0]
[1643554065292,105.8,94.469,94.377,42.69597158]
[1643554065493,2.95669142,94.468,94.377,42.69597158]
[1643554065896,2.95669142,94.468,94.378,0.25]
[1643554066199,2.95669142,94.468,94.377,42.69597158]
[1643554066394,2.95669142,94.468,94.387,6.0]
[1643554066595,2.95669142,94.468,94.378,46.466]
[1643554066794,0.25,94.467,94.378,46.466]
[1643554066994,15.895,94.46,94.388,6.0]
[1643554068002,18.85169142,94.46,94.388,6.0]
[1643554068397,18.85169142,94.46,94.378,46.216]
[1643554068597,105.8,94.459,94.378,46.216]
[1643554068800,15.899,94.44,94.378,46.216]
[1643554069097,2.95669142,94.458,94.378,46.216]
[1643554069302,2.95669142,94.439,94.378,46.216]
[1643554069498,2.95669142,94.439,94.377,42.69597158]
[1643554070500,0.25,94.438,94.377,42.69597158]
[1643554071306,2.95669142,94.437,94.338,48.7469]
[1643554071501,2.95669142,94.437,94.348,6.0]
[1643554072306,2.95669142,94.437,94.349,37.23959664]
[1643554072506,2.95669142,94.437,94.359,6.0]
[1643554073103,2.95669142,94.437,94.36,6.0]
[1643554075729,2.95669142,94.437,94.361,0.25]
[1643554077330,0.25,94.436,94.361,0.25]
[1643554077735,0.25,94.436,94.36,6.0]
[1643554077931,0.25,94.436,94.361,0.25]
[1643554078131,0.25,94.436,94.36,6.0]
[1643554078535,0.25,94.436,94.361,0.25]
[1643554078736,15.898,94.44,94.361,0.25]
[1643554079433,2.95669142,94.439,94.36,6.0]
[1643554079831,2.95669142,94.439,94.361,0.25]
[1643554082433,0.25,94.438,94.361,0.25]
[1643554082843,3.20669142,94.438,94.361,0.25]
[1643554086746,3.20669142,94.438,94.361,22.8868]
[1643554086945,15.9,94.43,94.361,22.8868]
[1643554087344,15.9,94.43,94.371,6.0]
[1643554087546,15.9,94.43,94.372,41.91125171]
[1643554088344,2.95669142,94.438,94.372,41.91125171]
[1643554090749,2.95669142,94.438,94.382,6.0]
[1643554090950,2.95669142,94.438,94.372,41.91125171]
[1643554090951,0.25,94.437,94.372,41.91125171]
[1643554093359,0.25,94.437,94.356,1.46938569]
[1643554093656,3.20669142,94.437,94.344,1.46938569]
[1643554093884,3.20669142,94.437,94.348,6.0]
[1643554094082,3.20669142,94.437,94.354,6.0]
[1643554094485,3.20669142,94.437,94.355,36.46441293]
[1643554094683,4.65304134,94.437,94.355,36.46441293]
[1643554094882,4.65304134,94.437,94.356,23.7541]
[1643554095983,3.20669142,94.437,94.356,23.7541]
[1643554096384,15.9,94.43,94.357,0.25]
[1643554097785,15.9,94.43,94.366,6.0]
[1643554098384,15.9,94.43,94.357,0.25]
[1643554099586,15.9,94.43,94.366,6.0]
[1643554099789,2.95669142,94.437,94.366,6.0]
[1643554100385,0.25,94.436,94.367,22.9668]
[1643554100793,0.25,94.436,94.378,35.81272989]
[1643554104289,15.9,94.43,94.378,35.81272989]
[1643554106593,2.95669142,94.437,94.378,35.81272989]
[1643554106993,2.95669142,94.441,94.378,35.81272989]
[1643554107597,2.95669142,94.441,94.379,24.2242]
[1643554108395,0.25,94.44,94.379,24.2242]
[1643554108896,2.95669142,94.439,94.379,24.2242]
[1643554111901,0.25,94.438,94.379,24.2242]
[1643554112103,0.25,94.438,94.357,1.46938569]
[1643554112104,15.901,94.43,94.357,1.46938569]
[1643554112302,15.901,94.43,94.31,15.901]
[1643554112303,15.901,94.43,94.35,1.46938569]
[1643554112502,1.44634992,94.427,94.348,6.0]
[1643554112705,1.44634992,94.426,94.334,7.46938569]
[1643554112905,1.44634992,94.422,94.348,6.0]
[1643554113103,1.44634992,94.422,94.334,6.0]
[1643554113104,105.8,94.419,94.346,34.74498445]
[1643554113304,105.8,94.419,94.34,6.0]
[1643554113505,105.8,94.419,94.341,6.0]
[1643554113704,2.95669142,94.418,94.342,6.0]
[1643554114205,15.906,94.41,94.342,6.0]
[1643554114404,15.906,94.41,94.311,47.3095]
[1643554114405,30.976,94.41,94.33,43.82056991]
[1643554114606,2.95669142,94.409,94.34,6.0]
[1643554115005,108.75669142,94.409,94.341,6.0]
[1643554115208,108.75669142,94.409,94.331,23.3683]
[1643554115404,2.95669142,94.408,94.331,23.3683]
[1643554115605,2.95669142,94.408,94.357,1.0]
[1643554116005,15.905,94.4,94.357,1.0]
[1643554117109,2.95669142,94.399,94.357,1.0]
[1643554117305,3.20669142,94.399,94.357,1.0]
[1643554118207,2.95669142,94.398,94.357,1.0]
[1643554118507,0.25,94.399,94.357,1.0]
[1643554119308,30.973,94.41,94.357,1.0]
[1643554123033,0.25,94.409,94.357,1.0]
[1643554126635,2.95669142,94.408,94.357,1.0]
[1643554127841,15.905,94.4,94.357,1.0]
[1643554128040,30.975,94.4,94.357,1.0]
[1643554129037,15.07,94.4,94.357,1.0]
[1643554130541,0.25,94.399,94.357,1.0]
[1643554135244,30.974,94.4,94.357,1.0]
[1643554135647,33.93069142,94.4,94.357,1.0]
[1643554137546,105.8,94.399,94.357,1.0]
[1643554137746,15.906,94.39,94.357,1.0]
[1643554137946,105.8,94.389,94.357,1.0]
[1643554138149,108.75669142,94.389,94.357,1.0]
[1643554138947,0.25,94.388,94.357,1.0]
[1643554139846,0.25,94.389,94.357,1.0]
[1643554140246,3.20669142,94.389,94.357,1.0]
[1643554140651,0.25,94.389,94.357,1.0]
[1643554141646,2.95669142,94.399,94.357,1.0]
[1643554142447,105.8,94.389,94.357,1.0]
[1643554142846,2.95669142,94.388,94.357,1.0]
[1643554143250,2.95669142,94.388,94.312,24.3788]
[1643554143447,2.95669142,94.388,94.06,0.1]
[1643554143448,15.91,94.37,94.306,1.46938569]
[1643554143647,15.91,94.37,94.292,24.4201]
[1643554143648,105.8,94.369,94.292,25.88948569]
[1643554143847,108.75669142,94.369,94.292,24.4201]
[1643554144147,2.95669142,94.368,94.292,24.4201]
[1643554144848,15.913,94.35,94.292,24.4201]
[1643554145250,2.95669142,94.349,94.292,24.4201]
[1643554149256,0.25,94.348,94.292,24.4201]
[1643554149857,105.8,94.359,94.292,24.4201]
[1643554151857,108.75669142,94.359,94.292,24.4201]
[1643554152357,15.914,94.35,94.292,24.4201]
[1643554152757,2.95669142,94.349,94.292,24.4201]
[1643554153560,0.25,94.348,94.292,24.4201]
[1643554153958,15.915,94.34,94.275,24.7764]
[1643554154159,30.985,94.34,94.275,24.7764]
[1643554154362,2.95669142,94.339,94.275,24.7764]
[1643554155561,108.75669142,94.339,94.275,24.7764]
[1643554156064,15.917,94.33,94.275,24.7764]
[1643554156462,18.87369142,94.33,94.275,24.7764]
[1643554158264,105.8,94.329,94.275,24.7764]
[1643554158466,15.918,94.32,94.275,24.7764]
[1643554158668,105.8,94.319,94.275,24.7764]
[1643554159968,15.92,94.31,94.236,1.46938569]
[1643554160168,105.8,94.309,94.227,0.46938569]
[1643554160370,108.75669142,94.309,94.235,6.0]
[1643554160568,108.75669142,94.309,94.226,47.7659]
[1643554160569,2.95669142,94.308,94.236,6.0]
[1643554160770,3.20669142,94.308,94.237,22.9357]
[1643554160968,3.20669142,94.308,94.238,46.05590649]
[1643554161469,2.95669142,94.307,94.238,46.05590649]
[1643554162070,15.921,94.3,94.238,46.05590649]
[1643554162870,18.87769142,94.3,94.238,46.05590649]
[1643554165371,0.25,94.299,94.238,46.05590649]
[1643554166171,15.923,94.29,94.238,46.05590649]
[1643554168775,15.923,94.29,94.237,22.9357]
[1643554169575,105.8,94.289,94.237,22.9357]
[1643554169775,105.8,94.289,94.238,35.04017275]
[1643554170174,2.95669142,94.288,94.238,35.04017275]
[1643554170375,15.925,94.28,94.19,2.93877137]
[1643554170579,15.925,94.28,94.16,479.50779695]
[1643554170580,105.8,94.279,94.167,46.3917]
[1643554170775,108.75669142,94.279,94.167,46.3917]
[1643554170975,105.8,94.279,94.167,46.3917]
[1643554171174,2.95669142,94.278,94.167,46.3917]
[1643554171374,105.8,94.259,94.168,40.10398064]
[1643554171576,105.8,94.257,94.168,40.10398064]
[1643554171975,2.95669142,94.256,94.168,40.10398064]
[1643554172173,2.95669142,94.256,94.169,0.25]
[1643554172575,0.25,94.255,94.168,40.10398064]
[1643554172975,15.932,94.24,94.168,40.10398064]
[1643554173376,18.88869142,94.24,94.168,40.10398064]
[1643554174776,18.88869142,94.24,94.169,0.25]
[1643554175378,15.932,94.24,94.169,0.25]
[1643554175878,15.934,94.23,94.167,46.3917]
[1643554176080,105.8,94.229,94.167,46.3917]
[1643554176279,108.75669142,94.229,94.167,46.3917]
[1643554176503,2.95669142,94.228,94.167,46.3917]
[1643554176903,2.95669142,94.228,94.168,41.58647018]
[1643554180511,15.935,94.22,94.168,41.58647018]
[1643554180812,2.95669142,94.24,94.169,0.25]
[1643554181011,18.02669142,94.24,94.168,41.58647018]
[1643554181213,18.02669142,94.24,94.169,0.25]
[1643554181413,15.07,94.24,94.169,0.25]
[1643554181817,15.07,94.24,94.168,41.58647018]
[1643554182012,15.07,94.24,94.169,0.25]
[1643554182812,0.25,94.239,94.169,0.25]
[1643554183715,0.25,94.239,94.168,41.58647018]
[1643554183912,0.25,94.239,94.169,0.25]
[1643554184913,15.929,94.26,94.169,0.25]
[1643554185118,15.929,94.26,94.169,106.05]
[1643554185313,15.929,94.26,94.178,6.0]
[1643554185513,15.929,94.26,94.168,41.58647018]
[1643554185713,2.95669142,94.259,94.169,0.25]
[1643554186314,15.929,94.26,94.169,0.25]
[1643554188614,0.25,94.259,94.169,0.25]
[1643554190018,2.95669142,94.271,94.169,0.25]
[1643554190019,2.95669142,94.271,94.178,6.0]
[1643554190220,7.2317496,94.42,94.178,6.0]
[1643554190221,2.95669142,94.283,94.187,38.97200668]
[1643554190419,203.50727621,94.368,94.188,106.05]
[1643554190420,15.8396,94.315,94.188,106.05]
[1643554190619,15.8396,94.315,94.198,111.8]
[1643554190821,15.8396,94.315,94.2,105.8]
[1643554191120,15.92,94.31,94.211,38.96565091]
[1643554191321,105.8,94.309,94.212,0.25]
[1643554191521,108.75669142,94.309,94.212,0.25]
[1643554191721,2.95669142,94.309,94.212,0.25]
[1643554191924,2.95669142,94.308,94.212,23.3827]
[1643554192123,15.924,94.29,94.212,23.3827]
[1643554192325,0.25,94.307,94.212,23.3827]
[1643554192924,15.07,94.31,94.212,23.3827]
[1643554193126,15.07,94.33,94.222,6.0]
[1643554193330,15.07,94.33,94.223,23.674]
[1643554193331,30.987,94.33,94.223,23.674]
[1643554193531,241.42,94.36,94.223,31.9543826]
[1643554193532,2.95669142,94.333,94.223,31.9543826]
[1643554193726,2.95669142,94.333,94.233,42.36347251]
[1643554193927,15.07,94.38,94.234,128.7996]
[1643554194126,2.95669142,94.381,94.244,111.8]
[1643554194325,105.8,94.403,94.251,42.16116928]
[1643554194326,2.95669142,94.402,94.251,42.16116928]
[1643554194528,2.95669142,94.399,94.261,6.0]
[1643554194727,2.95669142,94.399,94.282,105.8]
[1643554194925,15.903,94.41,94.283,49.2196]
[1643554195126,2.95669142,94.409,94.293,6.0]
[1643554195327,2.95669142,94.409,94.294,0.25]
[1643554195925,2.95669142,94.409,94.294,106.05]
[1643554196125,2.95669142,94.409,94.312,105.8]
[1643554196326,2.95669142,94.409,94.313,0.25]
[1643554196525,2.95669142,94.409,94.322,6.0]
[1643554196725,0.25,94.408,94.322,6.0]
[1643554196926,0.25,94.408,94.323,0.25]